fUST/lending_fUST_20240910
["ID","MTS","AMOUNT","RATE_DAILY","PERIOD"]
[337676604,1725940246615,-500.0,0.00021917,2]
[337676605,1725940246625,-500.0,0.00021917,2]
[337676606,1725940246635,-769.924954,0.00021917,2]
[337676607,1725940246645,-500.0,0.00021917,2]
[337676608,1725940246654,-769.924954,0.00021917,2]
[337676609,1725940246664,-372.56267105,0.00021917,2]
[337676610,1725940246674,-670.25,0.00021917,2]
[337676611,1725940246684,-273.93283798,0.00021917,2]
[337676612,1725940246694,-762.97,0.00021917,2]
[337676613,1725940246704,-500.0,0.00021917,2]
[337676614,1725940246715,-533.04913794,0.00021917,2]
[337676615,1725940246725,-500.0,0.00021917,2]
[337676616,1725940246735,-500.0,0.00021917,2]
[337676617,1725940246744,-769.924954,0.00021917,2]
[337676618,1725940246754,-502.7144767,0.00021917,2]
[337676619,1725940246763,-769.924954,0.00021917,2]
[337676620,1725940246773,-500.0,0.00021917,2]
[337676621,1725940246782,-500.0,0.00021917,2]
[337676622,1725940246792,-1318.42,0.00021917,2]
[337676623,1725940246801,-500.0,0.00021917,2]
[337676624,1725940246811,-500.0,0.00021917,2]
[337676625,1725940246820,-502.34558573,0.00021917,2]
[337676626,1725940246830,-500.0,0.00021917,2]
[337676627,1725940246840,-500.0,0.00021917,2]
[337676628,1725940246849,-1382.47,0.00021917,2]
[337676629,1725940246860,-504.69952471,0.00021917,2]
[337676630,1725940246869,-1195.18,0.00021917,2]
[337676631,1725940246879,-702.73,0.00021917,2]
[337676632,1725940246890,-151.0,0.00021917,2]
[337676633,1725940246904,-500.0,0.00021917,2]
[337676634,1725940246915,-726.56,0.00021917,2]
[337676635,1725940246927,-1429.74,0.00021917,2]
[337676636,1725940246939,-551.64,0.00021917,2]
[337676637,1725940246951,-2389.74,0.00021917,2]
[337676638,1725940246963,-500.0,0.00021917,2]
[337676639,1725940246974,-500.0,0.00021917,2]
[337676640,1725940246983,-62503.78,0.00021917,2]
[337676641,1725940246993,-500.0,0.00021917,2]
[337676642,1725940247002,-1578.3,0.00021917,2]
[337676643,1725940247012,-500.0,0.00021917,2]
[337676644,1725940247021,-500.0,0.00021917,2]
[337676645,1725940247031,-500.0,0.00021917,2]
[337676646,1725940247040,-500.0,0.00021917,2]
[337676647,1725940247051,-505.96516295,0.00021917,2]
[337676648,1725940247061,-500.0,0.00021917,2]
[337676649,1725940247071,-284.90326521,0.00021917,2]
[337676650,1725940247080,-45525.04,0.00021917,2]
[337676651,1725940247090,-1869.02,0.00021917,2]
[337676652,1725940247100,-500.0,0.00021917,2]
[337676653,1725940247109,-500.0,0.00021917,2]
[337676654,1725940247119,-500.0,0.00021917,2]
[337676655,1725940247129,-907.66,0.00021917,2]
[337676656,1725940247139,-500.0,0.00021917,2]
[337676657,1725940247148,-2147.03,0.00021917,2]
[337676658,1725940247157,-627.45,0.00021917,2]
[337676659,1725940247167,-500.0,0.00021917,2]
[337676660,1725940247177,-500.0,0.00021917,2]
[337676661,1725940247187,-151.0,0.00021917,2]
[337676662,1725940247198,-151.0,0.00021917,2]
[337676663,1725940247209,-867.86,0.00021917,2]
[337676664,1725940247219,-505.61869821,0.00021917,2]
[337676665,1725940247229,-500.0,0.00021917,2]
[337676666,1725940247239,-78442.61,0.00021917,2]
[337676667,1725940247250,-500.0,0.00021917,2]
[337676668,1725940247260,-191.43348125,0.00021917,2]
[337676669,1725940247271,-566.908005,0.00021917,2]
[337676670,1725940247281,-500.0,0.00021917,2]
[337676671,1725940247290,-500.0,0.00021917,2]
[337676672,1725940247300,-151.0,0.00021917,2]
[337676673,1725940247309,-506.97547049,0.00021917,2]
[337676674,1725940247319,-566.908005,0.00021917,2]
[337676675,1725940247329,-303.750142,0.00021917,2]
[337676676,1725940247338,-2223.08,0.00021917,2]
[337676677,1725940247348,-500.0,0.00021917,2]
[337676678,1725940247357,-500.0,0.00021917,2]
[337676679,1725940247367,-303.750142,0.00021917,2]
[337676680,1725940247377,-500.0,0.00021917,2]
[337676681,1725940247387,-7063.46,0.00021917,2]
[337676682,1725940247397,-2651.99,0.00021917,2]
[337676683,1725940247410,-500.0,0.00021917,2]
[337676684,1725940247420,-571.43,0.00021917,2]
[337676685,1725940247431,-5051.4,0.00021917,2]
[337676686,1725940247443,-500.0,0.00021917,2]
[337676687,1725940247454,-500.0,0.00021917,2]
[337676688,1725940247465,-500.0,0.00021917,2]
[337676689,1725940247475,-500.0,0.00021917,2]
[337676690,1725940247485,-167.167514,0.00021918,2]
[337676691,1725940247497,-500.0,0.00021918,2]
[337676692,1725940247507,-500.0,0.00021918,2]
[337676693,1725940247517,-500.0,0.00021918,2]
[337676694,1725940247526,-500.0,0.00021918,2]
[337676695,1725940247536,-500.0,0.00021918,2]
[337676696,1725940247547,-500.0,0.00021918,2]
[337676697,1725940247557,-500.0,0.00021918,2]
[337676698,1725940247569,-500.0,0.00021918,2]
[337676699,1725940247579,-500.0,0.00021918,2]
[337676700,1725940247588,-500.0,0.00021918,2]
[337676701,1725940247600,-500.0,0.00021918,2]
[337676702,1725940247612,-500.0,0.00021918,2]
[337676703,1725940247623,-500.0,0.00021918,2]
[337676704,1725940247633,-271.1220292,0.00021918,2]
[337676705,1725940247644,-500.0,0.00021918,2]
[337676706,1725940247655,-500.0,0.00021918,2]
[337676707,1725940247666,-500.0,0.00021918,2]
[337676708,1725940247675,-500.0,0.00021918,2]
[337676709,1725940247685,-500.0,0.00021918,2]
[337676710,1725940247694,-500.0,0.00021918,2]
[337676711,1725940247704,-500.0,0.00021918,2]
[337676712,1725940247713,-296.332,0.00021919,2]
[337676713,1725940247723,-585.509,0.00021919,2]
[337676714,1725940247732,-8484.866,0.00021919,2]
[337676715,1725940247742,-500.0,0.00021973,2]
[337676716,1725940247752,-503.95294463,0.00021973,2]
[337676717,1725940247763,-501.61265771,0.00021973,2]
[337676718,1725940247773,-500.0,0.00021973,2]
[337676719,1725940247783,-500.0,0.00021973,2]
[337676720,1725940247792,-500.0,0.00021973,2]
[337676721,1725940247802,-500.67872696,0.00021973,2]
[337676722,1725940247811,-200.0,0.00022,30]
[337676723,1725940247821,-200.0,0.00022,30]
[337676724,1725940247830,-200.0,0.00022,30]
[337676725,1725940247840,-200.0,0.00022,30]
[337676726,1725940247850,-200.0,0.00022,30]
[337676727,1725940247859,-200.0,0.00022,30]
[337676728,1725940247869,-200.0,0.00022,30]
[337676729,1725940247881,-200.0,0.00022,30]
[337676730,1725940247893,-91192.79895309,0.00022,2]
[337676731,1725940247905,-200.0,0.00022,30]
[337676732,1725940247916,-200.0,0.00022,30]
[337676733,1725940247927,-200.0,0.00022,30]
[337676734,1725940247936,-200.0,0.00022,30]
[337676735,1725940247948,-200.0,0.00022,30]
[337676736,1725940247960,-5000.0,0.00022,30]
[337676737,1725940247972,-5000.0,0.00022,30]
[337676738,1725940247982,-5000.0,0.00022,30]
[337676739,1725940247995,-5000.0,0.00022,30]
[337676740,1725940248005,-5000.0,0.00022,30]
[337676741,1725940248016,-5000.0,0.00022,30]
[337676742,1725940248026,-177.275072,0.00022,7]
[337676743,1725940248038,-177.275072,0.00022,7]
[337676744,1725940248048,-426.90582985,0.00022,30]
[337676745,1725940248058,-151.0,0.00022,7]
[337676746,1725940248069,-769.924954,0.00022,7]
[337676747,1725940248079,-769.924954,0.00022,7]
[337676748,1725940248088,-151.0,0.00022,7]
[337676749,1725940248097,-151.0,0.00022,7]
[337676750,1725940248107,-151.0,0.00022,7]
[337676751,1725940248118,-566.908005,0.00022,7]
[337676752,1725940248127,-151.0,0.00022,7]
[337676753,1725940248137,-566.908005,0.00022,7]
[337676754,1725940248148,-303.750142,0.00022,7]
[337676755,1725940248158,-303.750142,0.00022,7]
[337676756,1725940248168,-160.0,0.00022055,4]
[337676757,1725940248179,-187.87254154,0.00022055,5]
[337676758,1725940248189,-3000.0,0.000221,2]
[337676759,1725940248199,-2609.95878803,0.000221,2]
[337676760,1725940248208,-2609.95878802,0.000221,2]
[337676761,1725940248218,-2609.95878802,0.000221,2]
[337676762,1725940248227,-2609.95878802,0.000221,2]
[337676763,1725940248237,-150.227256,0.000221,2]
[337676764,1725940248247,-3000.0,0.0002211,2]
[337676765,1725940248258,-3000.0,0.0002212,2]
[337676766,1725940248267,-3000.0,0.0002213,2]
[337676767,1725940248276,-3000.0,0.0002214,2]
[337676768,1725940248286,-3000.0,0.0002215,2]
[337676769,1725940248295,-3000.0,0.0002216,2]
[337676770,1725940248306,-3000.0,0.0002217,2]
[337676771,1725940248316,-500.0,0.00022173,2]
[337676772,1725940248325,-500.0,0.00022173,2]
[337676773,1725940248335,-179.09776483,0.00022173,2]
[337676774,1725940248346,-502.13939876,0.00022173,2]
[337676775,1725940248357,-500.0,0.00022173,2]
[337676776,1725940248367,-500.0,0.00022173,2]
[337676777,1725940248378,-3000.0,0.0002218,2]
[337676778,1725940248387,-3000.0,0.0002219,2]
[337676779,1725940248398,-150.01,0.0002219,2]
[337676780,1725940248407,-7923.88302481,0.0002219,2]
[337676781,1725940248418,-151.0,0.0002219,7]
[337676782,1725940248428,-966.309215,0.0002219,7]
[337676783,1725940248438,-966.309215,0.0002219,7]
[337676784,1725940248448,-500.0,0.00022191,2]
[337676785,1725940248458,-1519.53,0.00022191,2]
[337676786,1725940248611,-500.0,0.00022191,2]
[337676787,1725940248622,-333.76089851,0.00022191,2]
[337676788,1725940248633,-500.0,0.00022191,2]
[337676789,1725940248642,-500.0,0.00022191,2]
[337676790,1725940248652,-500.0,0.00022191,2]
[337676791,1725940248662,-500.0,0.00022191,2]
[337676792,1725940248672,-824.78,0.00022191,2]
[337676793,1725940248682,-500.0,0.00022191,2]
[337676794,1725940248691,-500.0,0.00022191,2]
[337676795,1725940248701,-500.0,0.00022191,2]
[337676796,1725940248711,-718.42,0.00022191,2]
[337676797,1725940248722,-217.53464335,0.00022191,2]
[337676798,1725940248731,-500.0,0.00022191,2]
[337676799,1725940248742,-500.0,0.00022191,2]
[337676800,1725940248752,-346.08799888,0.00022191,2]
[337676801,1725940249592,-500.0,0.00021917,2]
[337676802,1725940249603,-500.0,0.00021917,2]
[337676803,1725940249613,-500.0,0.00021917,2]
[337676804,1725940249625,-500.0,0.00021917,2]
[337676805,1725940249635,-500.0,0.00021917,2]
[337676806,1725940249645,-500.0,0.00021917,2]
[337676807,1725940249654,-500.0,0.00021917,2]
[337676808,1725940249664,-189.56394992,0.00021917,2]
[337676809,1725940249675,-500.0,0.00021917,2]
[337676810,1725940249685,-150.45,0.00021919,2]
[337676811,1725940249694,-153.91200112,0.00022191,2]
[337676812,1725940249704,-500.0,0.00022191,2]
[337676813,1725940249714,-500.0,0.00022191,2]
[337676814,1725940249723,-590.4,0.00022191,2]
[337676815,1725940249733,-1592.89,0.00022191,2]
[337676816,1725940249744,-500.0,0.00022191,2]
[337676817,1725940249757,-500.0,0.00022191,2]
[337676818,1725940249768,-501.16887403,0.00022191,2]
[337676819,1725940249778,-500.0,0.00022191,2]
[337676820,1725940249788,-423.16,0.00022191,2]
[337676821,1725940249797,-500.0,0.00022191,2]
[337676822,1725940249807,-884.05,0.00022191,2]
[337676823,1725940249816,-500.0,0.00022191,2]
[337676824,1725940249826,-500.0,0.00022191,2]
[337676825,1725940249836,-500.0,0.00022191,2]
[337676826,1725940249845,-500.0,0.00022191,2]
[337676827,1725940249855,-500.0,0.00022191,8]
[337676828,1725940249865,-500.0,0.00022191,2]
[337676829,1725940249875,-500.0,0.00022191,2]
[337676830,1725940249885,-500.0,0.00022191,2]
[337676831,1725940249898,-500.0,0.00022191,2]
[337676832,1725940249916,-500.0,0.00022191,2]
[337676833,1725940249926,-544.93,0.00022191,2]
[337676834,1725940249936,-500.0,0.00022191,2]
[337676835,1725940249946,-500.0,0.00022191,2]
[337676836,1725940249955,-500.0,0.00022191,2]
[337676837,1725940249965,-1953.39,0.00022191,2]
[337676838,1725940249976,-485.47310884,0.00022191,2]
[337676839,1725940249987,-590.8,0.00022191,2]
[337676840,1725940249998,-1082.3,0.00022191,2]
[337676841,1725940250009,-500.0,0.00022191,2]
[337676842,1725940250019,-500.0,0.00022191,2]
[337676843,1725940250029,-500.0,0.00022191,2]
[337676844,1725940250040,-759.6,0.00022191,2]
[337676845,1725940250052,-500.0,0.00022191,2]
[337676846,1725940250061,-500.0,0.00022191,2]
[337676847,1725940250072,-535.5348318,0.00022191,2]
[337676848,1725940250082,-500.0,0.00022191,2]
[337676849,1725940250091,-655.23,0.00022191,2]
[337676850,1725940250101,-305.02659661,0.00022191,2]
[337676851,1725940250110,-500.0,0.00022191,2]
[337676852,1725940250119,-500.0,0.00022191,2]
[337676853,1725940250129,-500.0,0.00022191,2]
[337676854,1725940250139,-500.0,0.00022191,2]
[337676855,1725940250148,-508.09309889,0.00022191,2]
[337676856,1725940250159,-500.0,0.00022191,2]
[337676857,1725940250170,-1275.97,0.00022191,2]
[337676858,1725940250179,-500.0,0.00022191,2]
[337676859,1725940250189,-227.40233418,0.00022191,2]
[337676860,1725940250199,-634.99,0.00022191,2]
[337676861,1725940250209,-557.83,0.00022191,2]
[337676862,1725940250218,-500.0,0.00022191,2]
[337676863,1725940250227,-374.00637108,0.00022191,2]
[337676864,1725940250237,-500.0,0.00022191,2]
[337676865,1725940250247,-1368.12,0.00022191,2]
[337676866,1725940250257,-500.0,0.00022191,2]
[337676867,1725940250268,-500.0,0.00022191,2]
[337676868,1725940250277,-500.0,0.00022191,2]
[337676869,1725940250287,-500.0,0.00022191,2]
[337676870,1725940250296,-500.0,0.00022191,2]
[337676871,1725940250306,-500.0,0.00022191,2]
[337676872,1725940250316,-500.0,0.00022191,2]
[337676873,1725940250327,-500.0,0.00022191,2]
[337676874,1725940250338,-987.54,0.00022191,2]
[337676875,1725940250349,-536.91,0.00022191,2]
[337676876,1725940250358,-500.0,0.00022191,2]
[337676877,1725940250367,-500.0,0.00022191,2]
[337676878,1725940250377,-500.0,0.00022191,2]
[337676879,1725940250387,-500.0,0.00022191,2]
[337676880,1725940250397,-764.09,0.00022191,2]
[337676881,1725940250407,-635.590118,0.00022191,2]
[337676882,1725940250417,-500.0,0.00022191,2]
[337676883,1725940250427,-500.0,0.00022191,2]
[337676884,1725940250438,-500.0,0.00022191,2]
[337676885,1725940250448,-505.64510876,0.00022191,2]
[337676886,1725940250458,-500.0,0.00022191,2]
[337676887,1725940250467,-500.0,0.00022191,2]
[337676888,1725940250477,-500.0,0.00022191,2]
[337676889,1725940250488,-500.0,0.00022191,2]
[337676890,1725940250498,-500.0,0.00022191,2]
[337676891,1725940250508,-500.0,0.00022191,2]
[337676892,1725940250517,-500.0,0.00022191,2]
[337676893,1725940250527,-500.0,0.00022191,2]
[337676894,1725940250537,-500.0,0.00022191,2]
[337676895,1725940250547,-500.0,0.00022191,2]
[337676896,1725940250557,-500.0,0.00022191,2]
[337676897,1725940250566,-500.0,0.00022191,2]
[337676898,1725940250576,-500.0,0.00022191,2]
[337676899,1725940250586,-500.0,0.00022191,2]
[337676900,1725940250595,-500.0,0.00022191,2]
[337676901,1725940250605,-506.46123002,0.00022191,2]
[337676902,1725940250614,-907.37,0.00022191,2]
[337676903,1725940250624,-500.0,0.00022191,2]
[337676904,1725940250635,-500.0,0.00022191,2]
[337676905,1725940250645,-500.0,0.00022191,2]
[337676906,1725940250654,-1411.78,0.00022191,2]
[337676907,1725940250664,-841.25,0.00022191,2]
[337676908,1725940250674,-747.34,0.00022191,2]
[337676909,1725940250684,-340.00527328,0.00022191,2]
[337676910,1725940250694,-500.0,0.00022191,2]
[337676911,1725940250703,-500.0,0.00022191,2]
[337676912,1725940250712,-505.11,0.00022191,2]
[337676913,1725940250722,-502.15114129,0.00022191,2]
[337676914,1725940250733,-500.0,0.00022191,2]
[337676915,1725940250742,-500.0,0.00022191,2]
[337676916,1725940250752,-500.0,0.00022191,2]
[337676917,1725940250762,-500.0,0.00022191,2]
[337676918,1725940250772,-500.0,0.00022191,2]
[337676919,1725940250782,-500.0,0.00022191,2]
[337676920,1725940250792,-500.0,0.00022191,2]
[337676921,1725940250801,-500.0,0.00022191,2]
[337676922,1725940250812,-727.93,0.00022191,2]
[337676923,1725940250822,-500.0,0.00022191,2]
[337676924,1725940250832,-500.0,0.00022191,2]
[337676925,1725940250842,-500.0,0.00022191,2]
[337676926,1725940250851,-978.6,0.00022191,2]
[337676927,1725940250860,-500.0,0.00022191,2]
[337676928,1725940250870,-228.15259625,0.00022191,2]
[337676929,1725940250880,-500.0,0.00022191,2]
[337676930,1725940250889,-426.54432643,0.00022191,2]
[337676931,1725940250903,-896.04,0.00022191,2]
[337676932,1725940250913,-500.0,0.00022191,2]
[337676933,1725940250923,-500.0,0.00022191,2]
[337676934,1725940250935,-500.0,0.00022191,2]
[337676935,1725940250944,-500.0,0.00022191,2]
[337676936,1725940250955,-599.97,0.00022191,2]
[337676937,1725940250964,-500.0,0.00022191,2]
[337676938,1725940251114,-500.0,0.00022191,2]
[337676939,1725940251126,-500.0,0.00022191,2]
[337676940,1725940251146,-1003.24,0.00022191,2]
[337676941,1725940251155,-500.0,0.00022191,2]
[337676942,1725940251165,-1114.04,0.00022191,2]
[337676943,1725940251174,-940.82,0.00022191,2]
[337676944,1725940251184,-534.07,0.00022191,2]
[337676945,1725940251193,-500.0,0.00022191,2]
[337676946,1725940251202,-500.0,0.00022191,2]
[337676947,1725940251212,-503.46756715,0.00022191,2]
[337676948,1725940251223,-500.0,0.00022191,2]
[337676949,1725940251231,-500.0,0.00022191,2]
[337676950,1725940251241,-778.63,0.00022191,2]
[337676951,1725940251250,-1617.28,0.00022191,2]
[337676952,1725940251260,-500.0,0.00022191,2]
[337676953,1725940251270,-500.0,0.00022191,2]
[337676954,1725940251282,-500.0,0.00022191,2]
[337676955,1725940251291,-1071.97,0.00022191,2]
[337676956,1725940251301,-707.51,0.00022191,2]
[337676957,1725940251311,-714.48,0.00022191,2]
[337676958,1725940251321,-1924.69,0.00022191,2]
[337676959,1725940251330,-500.0,0.00022191,2]
[337676960,1725940251340,-500.0,0.00022191,2]
[337676961,1725940251351,-500.0,0.00022191,2]
[337676962,1725940251360,-2093.44,0.00022191,2]
[337676963,1725940251370,-500.0,0.00022191,2]
[337676964,1725940251383,-508.05548461,0.00022191,2]
[337676965,1725940251393,-1618.92,0.00022191,2]
[337676966,1725940251405,-500.0,0.00022191,2]
[337676967,1725940251416,-500.0,0.00022191,2]
[337676968,1725940251426,-500.0,0.00022191,2]
[337676969,1725940251436,-500.0,0.00022191,2]
[337676970,1725940251446,-254.89578595,0.00022191,2]
[337676971,1725940251457,-500.0,0.00022191,2]
[337676972,1725940251467,-500.0,0.00022191,2]
[337676973,1725940251476,-500.0,0.00022191,2]
[337676974,1725940251486,-500.0,0.00022191,2]
[337676975,1725940251498,-500.0,0.00022191,2]
[337676976,1725940251508,-1304.76,0.00022191,2]
[337676977,1725940251518,-500.0,0.00022191,2]
[337676978,1725940251528,-555.09600076,0.00022191,2]
[337676979,1725940251539,-500.0,0.00022191,2]
[337676980,1725940251549,-500.0,0.00022191,2]
[337676981,1725940251560,-500.0,0.00022191,2]
[337676982,1725940251569,-868.53,0.00022191,2]
[337676983,1725940251579,-247.9,0.00022191,2]
[337676984,1725940251589,-500.0,0.00022191,2]
[337676985,1725940251598,-500.0,0.00022191,2]
[337676986,1725940251607,-388.6429923,0.00022191,2]
[337676987,1725940251617,-504.21402138,0.00022191,2]
[337676988,1725940251627,-567.95,0.00022191,2]
[337676989,1725940251637,-821.56,0.00022191,2]
[337676990,1725940251646,-500.0,0.00022191,2]
[337676991,1725940251655,-151.0,0.00022191,7]
[337676992,1725940251665,-500.0,0.00022191,2]
[337676993,1725940251675,-151.0,0.00022191,7]
[337676994,1725940251684,-916.71,0.00022191,2]
[337676995,1725940251693,-151.0,0.00022191,7]
[337676996,1725940251702,-229.581256,0.00022191,7]
[337676997,1725940251712,-4017.97,0.00022191,2]
[337676998,1725940251721,-151.0,0.00022191,7]
[337676999,1725940251731,-151.0,0.00022191,7]
[337677000,1725940251740,-500.0,0.00022191,2]
[337677001,1725940251750,-500.0,0.00022191,2]
[337677002,1725940251760,-500.0,0.00022191,2]
[337677003,1725940251769,-407.14117254,0.00022191,2]
[337677004,1725940251778,-500.0,0.00022191,2]
[337677005,1725940251788,-500.0,0.00022191,2]
[337677006,1725940251798,-748.08,0.00022191,2]
[337677007,1725940251807,-1990.7,0.00022191,2]
[337677008,1725940251817,-734.41,0.00022191,2]
[337677009,1725940251827,-509.15737414,0.00022191,2]
[337677010,1725940251836,-500.0,0.00022191,2]
[337677011,1725940251845,-1210.41,0.00022191,2]
[337677012,1725940251855,-1388.46,0.00022191,2]
[337677013,1725940251864,-500.0,0.00022191,2]
[337677014,1725940251874,-1287.36,0.00022191,2]
[337677015,1725940251886,-500.0,0.00022191,2]
[337677016,1725940251898,-500.0,0.00022191,2]
[337677017,1725940251907,-500.0,0.00022191,2]
[337677018,1725940251916,-500.0,0.00022191,2]
[337677019,1725940251928,-500.0,0.00022191,2]
[337677020,1725940251937,-594.18006222,0.00022191,2]
[337677021,1725940251949,-500.0,0.00022191,2]
[337677022,1725940251958,-500.0,0.00022191,2]
[337677023,1725940251967,-500.0,0.00022191,2]
[337677024,1725940251978,-500.0,0.00022191,2]
[337677025,1725940251987,-722.6,0.00022191,2]
[337677026,1725940251996,-500.0,0.00022191,2]
[337677027,1725940252005,-500.0,0.00022191,2]
[337677028,1725940252014,-2031.08,0.00022191,2]
[337677029,1725940252023,-500.0,0.00022191,2]
[337677030,1725940252032,-506.34624746,0.00022191,2]
[337677031,1725940252042,-960.74,0.00022191,2]
[337677032,1725940252052,-1870.34,0.00022191,2]
[337677033,1725940252060,-500.0,0.00022191,2]
[337677034,1725940252069,-500.0,0.00022191,2]
[337677035,1725940252079,-500.0,0.00022191,2]
[337677036,1725940252089,-500.0,0.00022191,2]
[337677037,1725940252099,-151.0,0.00022191,7]
[337677038,1725940252109,-500.0,0.00022191,2]
[337677039,1725940252119,-151.0,0.00022191,7]
[337677040,1725940252130,-832.42,0.00022191,2]
[337677041,1725940252139,-541.81316457,0.00022191,2]
[337677042,1725940252148,-500.0,0.00022191,2]
[337677043,1725940252158,-966.309215,0.00022191,7]
[337677044,1725940252167,-966.309215,0.00022191,7]
[337677045,1725940252176,-500.0,0.00022191,2]
[337677046,1725940252185,-863.42,0.00022191,2]
[337677047,1725940252195,-508.49235309,0.00022191,2]
[337677048,1725940252204,-500.0,0.00022191,2]
[337677049,1725940252214,-966.309215,0.00022191,7]
[337677050,1725940252223,-966.309215,0.00022191,7]
[337677051,1725940252233,-500.0,0.00022191,2]
[337677052,1725940252242,-500.0,0.00022191,2]
[337677053,1725940252251,-500.0,0.00022191,2]
[337677054,1725940252260,-510.91589276,0.00022191,2]
[337677055,1725940252270,-508.83918155,0.00022191,2]
[337677056,1725940252279,-500.0,0.00022191,2]
[337677057,1725940252289,-500.0,0.00022191,2]
[337677058,1725940252298,-921.26,0.00022191,2]
[337677059,1725940252307,-579.31465795,0.00022191,2]
[337677060,1725940252316,-701.74,0.00022191,2]
[337677061,1725940252326,-500.0,0.00022191,2]
[337677062,1725940252335,-507.87942619,0.00022191,2]
[337677063,1725940252345,-570.5,0.00022191,2]
[337677064,1725940252355,-500.0,0.00022191,2]
[337677065,1725940252364,-500.0,0.00022191,2]
[337677067,1725940252373,-500.0,0.00022191,2]
[337677068,1725940252383,-672.66,0.00022191,2]
[337677069,1725940252394,-519.81,0.00022191,2]
[337677070,1725940252403,-646.83,0.00022191,2]
[337677071,1725940252412,-503.61405959,0.00022191,2]
[337677072,1725940252421,-174.55699243,0.00022191,2]
[337677073,1725940252429,-500.0,0.00022191,2]
[337677074,1725940252438,-500.0,0.00022191,2]
[337677075,1725940252448,-500.0,0.00022191,2]
[337677076,1725940252457,-1033.92,0.00022191,2]
[337677077,1725940252466,-500.0,0.00022191,2]
[337677078,1725940252475,-578.27,0.00022191,2]
[337677079,1725940252484,-500.0,0.00022191,2]
[337677080,1725940252494,-512.38,0.00022191,2]
[337677081,1725940252503,-151.0,0.00022191,7]
[337677082,1725940252512,-151.0,0.00022191,7]
[337677083,1725940252522,-500.0,0.00022191,2]
[337677084,1725940252530,-1051.85,0.00022191,2]
[337677085,1725940252539,-151.0,0.00022191,7]
[337677086,1725940252548,-151.0,0.00022191,7]
[337677087,1725940252557,-500.0,0.00022191,2]
[337677088,1725940252566,-747.25,0.00022191,2]
[337677089,1725940252575,-500.0,0.00022191,2]
[337677090,1725940252585,-1586.18,0.00022191,2]
[337677091,1725940252595,-500.0,0.00022191,2]
[337677092,1725940252604,-503.46603814,0.00022191,2]
[337677093,1725940252613,-512.64,0.00022191,2]
[337677094,1725940252622,-528.45,0.00022191,2]
[337677095,1725940252631,-451.13151373,0.00022191,2]
[337677096,1725940252640,-500.0,0.00022191,2]
[337677097,1725940252649,-500.0,0.00022191,2]
[337677098,1725940252659,-651.24,0.00022191,2]
[337677099,1725940252668,-500.0,0.00022191,2]
[337677100,1725940252678,-1032.44,0.00022191,2]
[337677101,1725940252687,-566.43,0.00022191,2]
[337677102,1725940252696,-293.99,0.00022191,2]
[337677103,1725940252705,-500.0,0.00022191,2]
[337677104,1725940252714,-500.0,0.00022191,2]